Cogmind - Beta 16 --- EXPLORER MODE // 2025.12.12 @ 12:53:31 Player: K.K.Y. Result: Destroyed by M7-1ZD(R) with Subdweller Laser Performance ------------- Evolutions (0) 0 Regions Visited (3) 600 Robots Destroyed (27) 135 Value Destroyed (672) 672 Prototype IDs (1) 20 Alien Tech Used (0) 0 Bonus (30) 30 TOTAL SCORE: 1457 Bonus ------- Follower Combat Kills 30 Cogmind --------- Core Integrity 0/250 Matter 284/300 Energy 264/265 System Corruption 0% Temperature Cool (6) Movement Rolling (110) Location -10/Subcaves Parts ------- > --- POWER (1) -------- Improved Ion Engine > --- PROPULSION (3) --- Subdweller Monowheel Subdweller Monowheel Subdweller Monowheel > --- UTILITY (2) ------ (None) > --- WEAPON (2) ------- Improved Assault Rifle > --- INVENTORY (5) ---- Ion Engine Huge Storage Unit Structural Scanner Mining Laser Peak State ------------ > --- POWER ------------ Improved Ion Engine > --- PROPULSION ------- VTOL Module VTOL Module VTOL Module > --- UTILITY ---------- Weight Redist. System Sensor Array > --- WEAPON ----------- Beamcaster Improved Assault Rifle > --- INVENTORY -------- Ion Engine Flight Unit Huge Storage Unit Improved Assault Rifle Mining Laser [Rating: 19] Favorites ----------- Power Improved Ion Engine Engine Improved Ion Engine Propulsion VTOL Module Wheel Subdweller Monowheel Flight Unit VTOL Module Utility Sensor Array Device Sensor Array Storage Huge Storage Unit Protection Weapon Shielding Weapon Improved Assault Rifle Energy Gun Beamcaster Ballistic Gun Improved Assault Rifle Special Weapon Multitool Build | -11 -10 -10 -10 ------- Run | Yrd Mat Min Sub Slots Evolved 1 | . 1 . . Power . | . . . . Propulsion 1 | . 1 . . Utility . | . . . . Weapon . | . . . . Parts Attached 27 | 4 14 3 6 Power 3 | . 2 1 . Engine 3 | . 2 1 . Core . | . . . . Reactor . | . . . . Propulsion 12 | 2 5 1 4 Treads . | . . . . Leg . | . . . . Wheel 6 | 2 . . 4 Hover . | . . . . Flight 6 | . 5 1 . Utility 4 | . 4 . . Device 2 | . 2 . . Storage 1 | . 1 . . Processor . | . . . . Hackware . | . . . . Protection 1 | . 1 . . Artifact . | . . . . Weapon 8 | 2 3 1 2 Energy Gun 4 | 2 1 1 . Energy Cannon . | . . . . Ballistic Gun 3 | . 2 . 1 Ballistic Cannon . | . . . . Launcher . | . . . . Special Weapon 1 | . . . 1 Impact Weapon . | . . . . Slashing Weapon . | . . . . Piercing Weapon . | . . . . Special Melee Weapon . | . . . . Unidentified Prototypes 1 | . 1 . . Parts Lost 10 | . . 1 9 Power . | . . . . Propulsion 5 | . . 1 4 Utility 2 | . . . 2 Weapon 3 | . . . 3 Highest Loss Streak 5 | . . 1 5 To Critical Strikes . | . . . . Average Backups 4 | 3 4 4 5 Power . | . . . 1 Propulsion . | . . . . Utility 1 | 2 1 1 2 Weapon 1 | . 1 2 2 Tool/Special . | . . . . Unused Backups 10 | . 4 3 3 Power 2 | . 1 . 1 Propulsion 2 | . . 2 . Utility 3 | . 2 . 1 Weapon 3 | . 1 1 1 Tool/Special . | . . . . Average Slot Usage (%) 75 | . 79 100 51 Engine 11 | . 7 12 12 Wheel 3 | . 2 . 6 Flight 21 | . 28 37 4 Device 17 | . 15 25 11 Energy Gun 10 | . 15 7 11 Ballistic Gun 9 | . 9 16 1 Peak Build Rating 19 | 4 17 19 19 Average Rating 13 | 1 10 18 10 On Entrance 10 | . 4 17 19 Avg Prop Armor Cover (%) 7 | . 15 . 6 Naked Turns . | . . . . Heaviest Build 16 | 3 14 16 16 Greatest Support 60 | 20 20 18 60 Greatest Overweight (x) 4 | . . . 4 Average Overweight (x) . | . . . 1 Largest Inventory Capacity 25 | 5 25 5 5 Average Capacity 5 | 5 5 5 5 Most Carried 5 | 5 5 5 5 Average Carried 4 | 3 4 4 4 Final Capacity 5 | 5 5 5 5 Final Carried 5 | 5 4 5 4 Class Distribution -------------------- 52% | Hacker-Sprinter 42% | Hacker-Mutant 5% | Scavenger-Mutant Dominant Class ---------------- Hacker-Sprinter | -10/Materials Hacker-Sprinter | -10/Mines Hacker-Mutant | -10/Subcaves Resources | -11 -10 -10 -10 ----------- Run | Yrd Mat Min Sub Matter Collected 818 | 230 172 305 111 Remotely . | . . . . Salvage Created 1112 | 96 252 406 358 Parts 62 | 7 10 18 27 Haulers Intercepted 2 | . 2 . . Recyclers Shooed . | . . . . Parts Field Recycled . | . . . . Retrieved Matter . | . . . . Parts Self-Destructed . | . . . . Prevented . | . . . . Parts Restored . | . . . . Kills | -11 -10 -10 -10 ------- Run | Yrd Mat Min Sub Combat Hostiles Destroyed 27 | . 4 16 7 Guns 27 | . 4 16 7 Classes Destroyed 9 | 2 3 2 2 Tunneler 2 | 2 . . . Hauler 2 | . 2 . . Recycler 1 | 1 . . . Swarmer 8 | . 2 6 . Grunt 6 | . 2 4 . Sentry 1 | . . 1 . Artisan 1 | . . . 1 Subdweller 7 | . . . 7 Assembled 5 | . . 5 . Best Kill Streak 4 | 3 2 4 4 Combat Bots Only 4 | . 2 4 4 Max Kills in Single Turn 2 | 1 1 2 1 Gunslinging 1 | . . 1 . Exploded . | . . . . Melee . | . . . . Uniques/NPCs Destroyed . | . . . . Combat | -11 -10 -10 -10 -------- Run | Yrd Mat Min Sub Hostile Shots Fired 124 | . 8 66 50 Missed 31 | . 4 16 11 Hits 93 | . 4 50 39 Projectile 93 | . 4 50 39 AOE 2 | . . 2 . Critical Strikes 1 | . . 1 . Part Disruptions 1 | . . 1 . Damage Taken 961 | . 29 418 514 Core 251 | . . 141 110 Absorbed by Shields . | . . . . Ignored by Resistances 589 | . 18 264 307 Core Remaining (%) 100 | 100 . . . Volleys Fired 96 | 5 18 38 35 Largest 2 | 2 2 2 2 Hottest 105 | 90 80 98 105 Shots Fired 172 | 10 36 76 50 Gun 167 | 10 36 76 45 Cannon . | . . . . Launcher . | . . . . Special 5 | . . . 5 Kinetic 81 | . 4 65 12 Thermal 91 | 10 32 11 38 Explosive . | . . . . Electromagnetic . | . . . . Robot Hit Streak 25 | 7 13 18 25 Robot Miss Streak 3 | . 1 3 1 Penetration Max . | . . . . Secondary Targets 3 | . . 3 . Max Gunslinging Chain 1 | . . 1 . Shots Hit Robots 135 | 7 27 59 42 Core Hits 57 | 4 11 26 16 Critical Kills 1 | . . 1 . Critical Parts Destroyed . | . . . . Critical Strikes 5 | 1 1 2 1 Burn 4 | 1 1 1 1 Destroy 1 | . . 1 . Melee Attacks . | . . . . Impact . | . . . . Slashing . | . . . . Piercing . | . . . . Sneak Attacks . | . . . . Combat Hostiles . | . . . . Follow-up Attacks . | . . . . Damage Inflicted 1980 | 79 300 911 690 Guns 1943 | 79 300 911 653 Cannons . | . . . . Explosions . | . . . . Melee . | . . . . Ramming . | . . . . Kinetic 951 | . 43 805 103 Thermal 1029 | 79 257 106 587 Explosive . | . . . . Electromagnetic . | . . . . Impact . | . . . . Slashing . | . . . . Piercing . | . . . . Highest Corruption . | . . . . Average Corruption . | . . . . Corruption Purged . | . . . . Corruption Blocked . | . . . . Overload Shots . | . . . . Overflow Damage . | . . . . Projectiles . | . . . . Explosions . | . . . . Melee . | . . . . Knockbacks . | . . . . Impact . | . . . . Kinetic . | . . . . Secondary . | . . . . Self-Inflicted Damage . | . . . . Shots . | . . . . Rammed . | . . . . Targets Rammed . | . . . . Kicked . | . . . . Crushed . | . . . . Highest Temperature 395 | 70 113 395 8 Average Temperature 86 | 30 52 112 2 Received Heat Transfer 389 | . 27 260 102 Effects 1 | . . 1 . Matter Decay 1 | . . 1 . Siege Activations . | . . . . Martial Activations . | . . . . Shielding Activations . | . . . . Robots Disrupted 1 | . . . 1 Combat Hostiles 1 | . . . 1 Robots Corrupted . | . . . . Combat Hostiles . | . . . . Parts Fried . | . . . . Impact Corruptions . | . . . . Robots Melted . | . . . . Combat Hostiles . | . . . . Parts Melted 5 | 1 3 1 . Heat Transferred 2523 | 285 818 259 1161 Parts Sabotaged . | . . . . Parts Stolen . | . . . . Parts Stripped . | . . . . Power Chain Reactions . | . . . . Alert | -11 -10 -10 -10 ------- Run | Yrd Mat Min Sub Maximum Alert Level . | . . . . Low Security (%) 100 | 100 100 100 . Level 1 . | . . . . Level 2 . | . . . . Level 3 . | . . . . Level 4 . | . . . . Level 5 . | . . . . High Security . | . . . . Max Security . | . . . . Peak Influence 105 | 10 50 105 . Initial 2 | . 2 . . Average 14 | 2 7 18 . Influence Increases 399 | 15 114 270 . Destroy 0b10 Robot/C 300 | . 80 220 . Destroy 0b10 Robot/NC 25 | 15 10 . . Destroy Leader 74 | . 24 50 . Influence Decreases 399 | 10 119 270 . Entered New Map 3 | . 3 . . Time Decay 386 | 10 116 260 . Lost Part 10 | . . 10 . Squads Dispatched . | . . . . Investigation . | . . . . Extermination . | . . . . Reinforcement . | . . . . Assault . | . . . . Garrison . | . . . . Intercept . | . . . . Searches Triggered . | . . . . Construction Impeded . | . . . . Haulers Reinforced . | . . . . Active Scanning Responses . | . . . . Cargo Convoy Interrupts . | . . . . Stealth | -11 -10 -10 -10 --------- Run | Yrd Mat Min Sub Distress Signals 1 | . . 1 . Communications Jammed . | . . . . Distress Signals . | . . . . Times Spotted 53 | . 11 31 11 Peak Tracking Total 12 | . 4 12 3 Tactical Retreats 1 | . . 1 . Traps | -11 -10 -10 -10 ------- Run | Yrd Mat Min Sub Traps Triggered 1 | . 1 . . Indirectly . | . . . . Trap Hack Attempts . | . . . . Triggered . | . . . . Disarmed . | . . . . Reprogrammed . | . . . . Reused . | . . . . Traps Extracted . | . . . . Installed . | . . . . Triggered . | . . . . Machines | -11 -10 -10 -10 ---------- Run | Yrd Mat Min Sub Machines Disabled . | . . . . Max in Single Turn . | . . . . Machines Repaired . | . . . . Machines Dismantled . | . . . . Machines Sabotaged . | . . . . Overloaded Fab Kills . | . . . . Hacking | -11 -10 -10 -10 --------- Run | Yrd Mat Min Sub Machines Accessed . | . . . . Terminals . | . . . . Fabricators . | . . . . Repair Stations . | . . . . Recycling Units . | . . . . Scanalyzers . | . . . . Garrison Access . | . . . . Total Hacks . | . . . . Successful . | . . . . Failed . | . . . . Catastrophic . | . . . . Database Lockouts . | . . . . Manual . | . . . . Terminals . | . . . . Fabricators . | . . . . Repair Stations . | . . . . Recycling Units . | . . . . Scanalyzers . | . . . . Garrison Access . | . . . . Terminal Hacks . | . . . . Fabricator Hacks . | . . . . Repair Station Hacks . | . . . . Recycling Unit Hacks . | . . . . Scanalyzer . | . . . . Garrison Access Hacks . | . . . . Unauthorized Hacks . | . . . . Terminals . | . . . . Fabricators . | . . . . Repair Stations . | . . . . Recycling Units . | . . . . Scanalyzers . | . . . . Garrison Access . | . . . . Data Cores Recovered . | . . . . Used . | . . . . Hacking Detections . | . . . . Full Trace Events . | . . . . Feedback Events . | . . . . Feedback Blocked . | . . . . Robot Schematics Acquired . | . . . . Robots Built . | . . . . Authchips . | . . . . Time . | . . . . Total Robot Build Rating . | . . . . Part Schematics Acquired . | . . . . Parts Built . | . . . . Authchips . | . . . . Time . | . . . . Total Part Build Rating . | . . . . Part Studies Acquired . | . . . . Parts Repaired . | . . . . Time . | . . . . Parts Recycled . | . . . . Recycled Matter . | . . . . Retrieved Matter . | . . . . Retrieved Components . | . . . . Parts Scanalyzed . | . . . . Part Schematics Acquired . | . . . . Parts Damaged . | . . . . Bothacking | -11 -10 -10 -10 ------------ Run | Yrd Mat Min Sub Used RIF Installer . | . . . . Robots Hacked . | . . . . Non-combat . | . . . . Combat . | . . . . Robot Hacks Applied . | . . . . Relay Couplers Released . | . . . . Fabnet Peak Effective % . | . . . . Robots Rewired 1 | . . . 1 Allies Hacked . | . . . . Hacks Repelled . | . . . . Allies | -11 -10 -10 -10 -------- Run | Yrd Mat Min Sub Total Allies 1 | . . . 1 Largest Group 1 | . . . 1 Highest-Rated Group 19 | . . . 19 Highest-Rated Ally 19 | . . . 19 Total Orders . | . . . . Ally Attacks 3 | . . . 3 Total Damage 59 | . . . 59 Kills 1 | . . . 1 Allies Corrupted . | . . . . Allies Melted . | . . . . Intel | -11 -10 -10 -10 ------- Run | Yrd Mat Min Sub Active Infowar (turns) 1720 | . 368 727 625 Sensors 1720 | . 368 727 625 Robot Analysis Total . | . . . . Derelict Logs Recovered . | . . . . Drone Launches . | . . . . Drone Recoveries . | . . . . Exploration | -11 -10 -10 -10 ------------- Run | Yrd Mat Min Sub Turns Passed 1941 | 59 377 727 778 Spaces Moved 2212 | 56 725 1037 394 Core 205 | 42 . . 163 Treads . | . . . . Legs . | . . . . Wheels 210 | 14 31 . 165 Hover . | . . . . Flight 1797 | . 694 1037 66 Fastest Speed 29 | 50 29 29 29 Average Speed 52 | 57 32 29 150 Slowest Speed 275 | 80 80 29 275 Overloaded Moves . | . . . . Propulsion Burnouts . | . . . . Robots Hopped 5 | . 1 4 . Potential Cave-ins . | . . . . Cave-ins Triggered . | . . . . Exploration Rate (%) 54 | 3 98 99 17 Regions Visited 3 Branch Regions 2 Pre-discovered Areas 1 | . . 1 . Known Exits Taken 3 | 1 1 1 . Unknown Exits Taken . | . . . . Scrap Searched 1 | . . 1 . Spaces Dug . | . . . . Terrain Destroyed . | . . . . Melee . | . . . . Projectile . | . . . . AOE . | . . . . Terrain Rammed . | . . . . Walls Destroyed . | . . . . Machines Disabled . | . . . . Actions | -11 -10 -10 -10 --------- Run | Yrd Mat Min Sub Total 2819 | 71 836 1386 526 Wait 448 | . 58 302 88 Move 2200 | 55 722 1029 394 Hop 4 | . 1 3 . Pick Up 20 | 7 8 5 . Fast Attach 14 | 2 7 . 5 Attach 8 | 2 4 1 1 Detach 2 | . 2 . . Swap 7 | . 4 3 . Drop 17 | . 12 5 . Fire 96 | 5 18 38 35 Melee . | . . . . Ram . | . . . . Kick . | . . . . Crush . | . . . . Escape Stasis . | . . . . Rewire 3 | . . . 3 Trap . | . . . . Miscellaneous . | . . . . Route ------- -11/Scrapyard -10/Materials (discovered 6 exits: *Mat x3 / *Min x2 / *Sub) -10/Mines (discovered 3 exits: *Mat x2 / *Sub) -10/Subcaves History --------- Turn | Location | Event 6 | -11/Scrapyard | Identified exit to Materials 6 | -11/Scrapyard | Discovered exit to Materials (range 14) 60 | -11/Scrapyard | Entered Materials 60 | -10/Materials | Evolved 1 slot: Propulsion x1 61 | -10/Materials | Met a group of wandering Federalists 102 | -10/Materials | Identified exit to Subcaves 102 | -10/Materials | Discovered exit to Subcaves (range 6) 174 | -10/Materials | Identified exit to Mines 174 | -10/Materials | Discovered exit to Mines (range 10) 175 | -10/Materials | Identified exit to Materials 175 | -10/Materials | Discovered exit to Materials (range 15) 252 | -10/Materials | Discovered exit to Mines (range 13) 318 | -10/Materials | Discovered exit to Materials (range 16) 351 | -10/Materials | Discovered exit to Materials (range 12) 437 | -10/Materials | Entered Mines 440 | -10/Mines | Met a Derelict bent on vengeance 517 | -10/Mines | Discovered exit to Materials (range 6) 531 | -10/Mines | Assembled infested the area 536 | -10/Mines | Assisted by a Guerilla fighting off Assembled 538 | -10/Mines | Build established: Hacker-Sprinter 641 | -10/Mines | Received a Rocket Launcher from a helpful Derelict 645 | -10/Mines | Core integrity fell below 50% 683 | -10/Mines | Joined a pair of Derelicts in attacking an 0b10 outpost 725 | -10/Mines | Lost 3 allies 767 | -10/Mines | Discovered exit to Materials (range 10) 798 | -10/Mines | Learned location of Storage (-8) 1163 | -10/Mines | Discovered exit to Subcaves (range 4) 1164 | -10/Mines | Entered Subcaves 1165 | -10/Subcaves | Approached by a straggling Scientist 1293 | -10/Subcaves | Lost 5 parts (3n1u1w) 1547 | -10/Subcaves | Build established: Hacker-Mutant 1808 | -10/Subcaves | Core integrity fell below 20% 1836 | -10/Subcaves | Lost 3 parts (1n1u1w) 1924 | -10/Subcaves | A Subdweller sparked back to life 1924 | -10/Subcaves | A Subdweller sparked back to life 1924 | -10/Subcaves | A Subdweller sparked back to life 1942 | -10/Subcaves | Destroyed by M7-1ZD(R) with Subdweller Laser Last Messages --------------- 01816_ ZX-4ZU(R) destroyed. 87-K38(c): "I think it's somewhere southeast of here" 01828_ Acquired Sub. Monowheel. 01833_ Acquired 20 matter. 01835_ Acquired Sub. Monowheel. 01837_ Acquired 10 matter. 87-K38(c): "I think it's somewhere south of here" 01889_ Sub. Monowheel shoots sparks and powers down. 01924_ M7-1ZD(R) creaks and sparks as it begins to move. 01924_ MH-BWL(R) creaks and sparks as it begins to move. 01924_ NY-1JT(R) creaks and sparks as it begins to move. 01924_ 87-K38(c) destroyed. 01937_ Beamcaster destroyed. 01940_ MH-BWL(R) destroyed. Map ----- +----------------------------------------------------+ | ?????????????????????????????????????????????????? | | ?????????????????????????????????????????????????? | | ?????????????????????????????????????????????????? | | ?????????????????????????????????????????????????? | | ?????????????????????????????????????????????????? | | ?????????????????????????????????????????????????? | | ?????????????????????????????????????????????????? | | ?????????????????????????????????????????????????? | | ?????????????????????????????????????????????????? | | ?????????????????????????????????????????????????? | | ?????????????????????????????????????????????????? | | ?????????????????????????????????????????????????? | | ?????????????????????????????????????????????????? | | ?????????????????????????????????????????????????? | | ?????????????????????????????????????????????????? | | ?????????????????????????????????????????????????? | | ?????????????????????????????????????????????????? | | ?????????????????????????????????????????????????? | | ?????????????????????????????????????????????????? | | ????????????????????????????????????????????????## | | ???????????????????????????????????????????????? # | | ??????????????????????????????????????????????? # | | ??????????????????????????????????????????????? # | | ?????????????????####"###?????????????????????? # | | ?????????????##### # " ####??????????????????? | | ????????????## ## &#@ #######????????????# | | ????????????# ! "<%]* #??????????## | | ????????????## %"""RR[ # ""#????####?## | | ?????????????### ## < <"& ## "###### ### # | | ???????????????#### #< " ### "" "## # | | ??????????????????# " """ "" " # | | ??????????????????# #"#""" """ # | | ??????????????????######## ##""## # ###### #### | | ????????????????????###??####""######????## #?## | | ???????????????????##"##????##""??####??### ## | | ??????????????????## ""#??????""?## ### | | ????????????????### #???????#??# ## | | ????????????????# ####???????# #? | | ???????????????## """ #???????## ###? | | ???????????????# ["""""#????????###### ##??? | | ???????????????# !%& ""#?????????????# ##??? | | ???????????????# !## #????????????## ##?? | | ???????????????# ## ##???????????# ### | | ???????????????## ## &&#?????####??# # | | ????????????????## ####%####?## ##?## ## | | ?????????????????## ## &&# ### #??## ####? | | ????????????####### # * # #?### ##???? | | ###????###### ### ###?# ##????? | | ###### ###?# ##???# ##????? | | ## ###???# ### #????# #????? | +----------------------------------------------------+ Best States ------------- Heat Dissipation 25 Energy Generation 12 Energy Capacity 265 Matter Stores 300 Matter Capacity 300 Sight Range 16 Robot Scan Range 14 Terrain Scan Density 10 Additional Mass Support 6 Resistance: KI 35 Resistance: TH 35 Resistance: EX 35 Resistance: EM 35 Resistance: I 35 Resistance: S 35 Resistance: P 35 Evasion (%) 64 Offensive Hacking 20 Item Schematics ----------------- None Robot Schematics ------------------ None Fabricated ------------ Nothing Repaired ---------- Nothing Studied --------- None Alien Tech Used ----------------- None Achievements -------------- None Challenges ------------ None Game ------ Seed ChromaticAntigravJammer Manual? 0 Play Time 00:18:57 Cumulative 194.5 hours Start 2025.12.12 @ 12:37:37 End 2025.12.12 @ 12:53:31 Sessions 1 Manual Loads 0 Difficulty Explorer Special Mode None Game No. 283 Rogue 0 Adventurer 0 Explorer 283 Win Type - Total 0 Types 0/0/0/0/0/0/0/0/0/0 Lore% 71 Gallery% 67 Achievement% 53 Wizard Run 0 Options --------- Layout 1 ASCII 0 Keyboard 0 Movement Mouse Keybinds 0 Fullscreen 1 Font 24/Smallcaps Map View 50x35 Zoom Use 0% Tactical HUD 1 Map Filters NONE Filters NONE Steam 1 RUN: c23d6ed4-6f9d-4058-a7fc-0bf720962bbd